lending/lending_fUSD_20250913
["ID","MTS","AMOUNT","RATE_DAILY","PERIOD"]
[385294029,1757753449176,-400.0,0.00031717,2]
[385294030,1757753449186,-407.61959178,0.00031717,2]
[385294031,1757753449196,-400.0,0.00031717,2]
[385294032,1757753449207,-400.0147124,0.00031717,2]
[385294033,1757753449216,-400.0,0.00031717,2]
[385294034,1757753449226,-203.28109274,0.00031717,2]
[385294035,1757753449238,-329.92115388,0.00031717,2]
[385294036,1757753449248,-500.0,0.00031717,2]
[385294037,1757753449259,-400.0,0.00031717,2]
[385294038,1757753449269,-400.0,0.00031717,2]
[385294039,1757753449279,-280.0,0.00031717,2]
[385294040,1757753449289,-400.0,0.00031717,2]
[385294041,1757753449299,-407.2889768,0.00031717,2]
[385294042,1757753449310,-400.0,0.00031717,2]
[385294043,1757753449320,-403.36754174,0.00031717,2]
[385294044,1757753449330,-423.61883907,0.00031717,2]
[385294045,1757753449340,-400.0,0.00031717,2]
[385294046,1757753449350,-405.04875071,0.00031717,2]
[385294047,1757753449360,-4219.03693679,0.00031718,2]
[385294048,1757753449370,-57357.98845425,0.00031718,2]
[385294049,1757753449380,-1265.03782278,0.00031718,2]
[385294050,1757753449390,-400.0,0.00031718,2]
[385294051,1757753449400,-400.0,0.00031718,2]
[385294052,1757753449409,-400.0,0.00031718,2]
[385294053,1757753449420,-623.57,0.00031718,2]
[385294054,1757753449430,-400.0,0.00031718,2]
[385294055,1757753449440,-400.0,0.00031718,2]
[385294056,1757753449450,-400.0,0.00031718,2]
[385294057,1757753449461,-400.0,0.00031718,2]
[385294058,1757753449471,-409.29626177,0.00031718,2]
[385294059,1757753449481,-176.11519888,0.00031718,2]
[385294060,1757753449492,-400.0,0.00031718,2]
[385294061,1757753449502,-400.0,0.00031718,2]
[385294062,1757753449512,-410.18488972,0.00031718,2]
[385294063,1757753449523,-400.0,0.00031718,2]
[385294064,1757753449533,-400.0,0.00031718,2]
[385294065,1757753449543,-400.0,0.00031718,2]
[385294066,1757753449553,-641.44,0.00031718,2]
[385294067,1757753449563,-400.0,0.00031718,2]
[385294068,1757753449573,-400.0,0.00031718,2]
[385294069,1757753449583,-400.0,0.00031718,2]
[385294070,1757753449593,-400.0,0.00031718,2]
[385294071,1757753449604,-400.0,0.00031718,2]
[385294072,1757753449614,-400.0,0.00031718,2]
[385294073,1757753449624,-400.0,0.00031718,2]
[385294074,1757753449637,-400.0,0.00031718,2]
[385294075,1757753449647,-402.52682301,0.00031718,2]
[385294076,1757753449658,-1000.0,0.00031718,2]
[385294077,1757753449672,-400.0,0.00031718,2]
[385294078,1757753449682,-723.49,0.00031718,2]
[385294079,1757753449693,-416.05504075,0.00031718,2]
[385294080,1757753449704,-400.0,0.00031718,2]
[385294081,1757753449714,-400.0,0.00031718,2]
[385294082,1757753449725,-414.27547822,0.00031718,2]
[385294083,1757753449735,-400.0,0.00031718,2]
[385294084,1757753449745,-400.0,0.00031718,2]
[385294085,1757753449756,-400.0,0.00031718,2]
[385294086,1757753449765,-407.83,0.00031718,2]
[385294087,1757753449776,-200.0,0.00031718,2]
[385294088,1757753449786,-725.74,0.00031718,2]
[385294089,1757753449797,-667.08,0.00031718,2]
[385294090,1757753449808,-400.0,0.00031718,2]
[385294091,1757753449818,-414.25,0.00031718,2]
[385294092,1757753449828,-400.0,0.00031718,2]
[385294093,1757753449838,-400.0,0.00031718,2]
[385294094,1757753449849,-400.0,0.00031718,2]
[385294095,1757753449860,-400.0,0.00031718,2]
[385294096,1757753449871,-400.0,0.00031718,2]
[385294097,1757753449881,-400.0,0.00031718,2]
[385294098,1757753449891,-400.0,0.00031718,2]
[385294099,1757753449901,-400.0,0.00031718,2]
[385294100,1757753449911,-400.0,0.00031718,2]
[385294101,1757753449921,-400.0,0.00031718,2]
[385294102,1757753449931,-400.0,0.00031718,2]
[385294103,1757753449941,-400.0,0.00031718,2]
[385294104,1757753449951,-400.0,0.00031718,2]
[385294105,1757753449962,-400.0,0.00031718,2]
[385294106,1757753449972,-400.0,0.00031718,2]
[385294107,1757753449982,-400.0,0.00031718,2]
[385294108,1757753449992,-400.0,0.00031718,2]
[385294109,1757753450002,-400.0,0.00031718,2]
[385294110,1757753450012,-400.0,0.00031718,2]
[385294111,1757753450022,-400.0,0.00031718,2]
[385294112,1757753450032,-431.36,0.00031718,2]
[385294113,1757753450042,-492.92,0.00031718,2]
[385294114,1757753450052,-400.0,0.00031718,2]
[385294115,1757753450062,-400.0,0.00031718,2]
[385294116,1757753450072,-400.0,0.00031718,2]
[385294117,1757753450081,-729.2,0.00031718,2]
[385294118,1757753450091,-400.0,0.00031718,2]
[385294119,1757753450100,-400.0,0.00031718,2]
[385294120,1757753450110,-626.14,0.00031718,2]
[385294121,1757753450124,-414.68978959,0.00031718,2]
[385294122,1757753450134,-400.0,0.00031718,2]
[385294123,1757753450144,-400.0,0.00031718,2]
[385294124,1757753450155,-400.0,0.00031718,2]
[385294125,1757753450165,-400.0,0.00031718,2]
[385294126,1757753450175,-400.0,0.00031718,2]
[385294127,1757753450186,-400.0,0.00031718,2]
[385294128,1757753450196,-714.71,0.00031718,2]
[385294129,1757753450206,-727.53,0.00031718,2]
[385294130,1757753450216,-400.0,0.00031718,2]
[385294131,1757753450225,-400.0,0.00031718,2]
[385294132,1757753450235,-400.0,0.00031718,2]
[385294133,1757753450244,-562.78,0.00031718,2]
[385294134,1757753450254,-782.98,0.00031718,2]
[385294135,1757753450264,-400.0,0.00031718,2]
[385294136,1757753450277,-400.0,0.00031718,2]
[385294137,1757753450287,-400.0,0.00031718,2]
[385294138,1757753450296,-500.0,0.00031718,14]
[385294139,1757753450306,-579.58,0.00031718,2]
[385294140,1757753450317,-430.42,0.00031718,2]
[385294141,1757753450327,-406.37,0.00031718,2]
[385294142,1757753450337,-282.56457876,0.00031718,2]
[385294143,1757753450348,-926.1,0.00031718,2]
[385294144,1757753450358,-400.0,0.00031718,2]
[385294145,1757753450367,-515.94,0.00031718,2]
[385294146,1757753450378,-400.0,0.00031718,2]
[385294147,1757753450388,-432.33,0.00031718,2]
[385294148,1757753450397,-400.0,0.00031718,2]
[385294149,1757753450408,-430.19154999,0.00031718,2]
[385294150,1757753450420,-400.0,0.00031718,2]
[385294151,1757753450430,-400.0,0.00031718,2]
[385294152,1757753450443,-763.75,0.00031718,2]
[385294153,1757753450453,-400.0,0.00031718,2]
[385294154,1757753450463,-577.05,0.00031718,2]
[385294155,1757753450473,-400.0,0.00031718,2]
[385294156,1757753450482,-400.0,0.00031718,2]
[385294157,1757753450492,-400.0,0.00031718,2]
[385294158,1757753450502,-405.33353778,0.00031718,2]
[385294159,1757753450511,-400.0,0.00031718,2]
[385294160,1757753450522,-400.0,0.00031718,2]
[385294161,1757753450532,-530.29,0.00031718,2]
[385294162,1757753450542,-400.0,0.00031718,2]
[385294163,1757753450552,-400.0,0.00031718,2]
[385294164,1757753450562,-303.38468676,0.00031718,2]
[385294165,1757753450575,-401.68868416,0.00031718,2]
[385294166,1757753450586,-400.0,0.00031718,2]
[385294167,1757753450598,-629.76,0.00031718,2]
[385294168,1757753450608,-400.0,0.00031718,2]
[385294169,1757753450618,-400.0,0.00031718,2]
[385294170,1757753450628,-400.0,0.00031718,2]
[385294171,1757753450638,-400.0,0.00031718,2]
[385294172,1757753450648,-643.98,0.00031718,2]
[385294173,1757753450659,-665.86,0.00031718,2]
[385294174,1757753450669,-677.59,0.00031718,2]
[385294175,1757753450679,-400.0,0.00031718,2]
[385294176,1757753450689,-400.0,0.00031718,2]
[385294177,1757753450707,-400.0,0.00031718,2]
[385294178,1757753450717,-400.0,0.00031718,2]
[385294179,1757753450727,-400.0,0.00031718,2]
[385294180,1757753450737,-468.71,0.00031718,2]
[385294181,1757753450746,-542.68,0.00031718,2]
[385294182,1757753450756,-316.70581742,0.00031718,2]
[385294183,1757753450766,-400.0,0.00031718,2]
[385294184,1757753450776,-400.0,0.00031718,2]
[385294185,1757753450785,-400.0,0.00031718,2]
[385294186,1757753450796,-415.14965065,0.00031718,2]
[385294187,1757753450806,-400.0,0.00031718,2]
[385294188,1757753450815,-400.0,0.00031718,2]
[385294189,1757753450825,-560.78,0.00031718,2]
[385294190,1757753450835,-403.72778726,0.00031718,2]
[385294191,1757753450845,-603.37,0.00031718,2]
[385294192,1757753450855,-400.0,0.00031718,2]
[385294193,1757753450865,-400.0,0.00031718,2]
[385294194,1757753450875,-400.0,0.00031718,2]
[385294195,1757753450885,-637.07,0.00031718,2]
[385294196,1757753450895,-400.0,0.00031718,2]
[385294197,1757753450904,-400.0,0.00031718,2]
[385294198,1757753450914,-400.0,0.00031718,2]
[385294199,1757753450924,-400.0,0.00031718,2]
[385294200,1757753450934,-400.0,0.00031718,2]
[385294201,1757753450944,-550.56,0.00031718,2]
[385294202,1757753450954,-400.0,0.00031718,2]
[385294203,1757753450964,-400.0,0.00031718,2]
[385294204,1757753450973,-527.3,0.00031718,2]
[385294205,1757753450983,-612.91,0.00031718,2]
[385294206,1757753450993,-170.58965842,0.00031718,2]
[385294207,1757753451003,-400.0,0.00031718,2]
[385294208,1757753451014,-528.57,0.00031718,2]
[385294209,1757753451026,-400.0,0.00031718,2]
[385294210,1757753451035,-493.56,0.00031718,2]
[385294211,1757753451045,-400.0,0.00031718,2]
[385294212,1757753451055,-1000.0,0.00031718,2]
[385294213,1757753451064,-480.89,0.00031718,2]
[385294214,1757753451074,-400.0,0.00031718,2]
[385294215,1757753451084,-371.76429114,0.00031718,2]
[385294216,1757753451095,-400.0,0.00031718,2]
[385294217,1757753451104,-400.0,0.00031718,2]
[385294218,1757753451114,-400.0,0.00031718,2]
[385294219,1757753451123,-400.0,0.00031718,2]
[385294220,1757753451133,-400.0,0.00031718,2]
[385294221,1757753451142,-400.0,0.00031718,2]
[385294222,1757753451152,-539.55,0.00031718,2]
[385294223,1757753451162,-400.0,0.00031718,2]
[385294224,1757753451172,-614.78,0.00031718,2]
[385294225,1757753451182,-464.49,0.00031718,2]
[385294226,1757753451192,-400.0,0.00031718,2]
[385294227,1757753451202,-400.0,0.00031718,2]
[385294228,1757753451213,-400.0,0.00031718,2]
[385294229,1757753451223,-1018.24,0.00031718,2]
[385294230,1757753451232,-400.0,0.00031718,2]
[385294231,1757753451367,-400.0,0.00031718,2]
[385294232,1757753451376,-583.43,0.00031718,2]
[385294233,1757753451385,-645.3,0.00031718,2]
[385294234,1757753451395,-400.0,0.00031718,2]
[385294235,1757753451404,-683.99,0.00031718,2]
[385294236,1757753451414,-431.36,0.00031718,2]
[385294237,1757753451423,-400.0,0.00031718,2]
[385294238,1757753451432,-400.0,0.00031718,2]
[385294239,1757753451442,-735.47,0.00031718,2]
[385294240,1757753451451,-487.53,0.00031718,2]
[385294241,1757753451460,-400.0,0.00031718,2]
[385294242,1757753451470,-566.48,0.00031718,2]
[385294243,1757753451479,-685.02,0.00031718,2]
[385294244,1757753451489,-400.0,0.00031718,2]
[385294245,1757753451498,-400.0,0.00031718,2]
[385294246,1757753451507,-400.0,0.00031718,2]
[385294247,1757753451517,-400.0,0.00031718,2]
[385294248,1757753451526,-449.84,0.00031718,2]
[385294249,1757753451535,-637.01,0.00031718,2]
[385294250,1757753451544,-771.6,0.00031718,2]
[385294251,1757753451554,-400.0,0.00031718,2]
[385294252,1757753451564,-400.0,0.00031718,2]
[385294253,1757753451573,-400.0,0.00031718,2]
[385294254,1757753451583,-400.0,0.00031718,2]
[385294255,1757753451592,-400.0,0.00031718,2]
[385294256,1757753451602,-400.0,0.00031718,2]
[385294257,1757753451612,-400.0,0.00031718,2]
[385294258,1757753451621,-400.0,0.00031718,2]
[385294259,1757753451631,-400.0,0.00031718,2]
[385294260,1757753451640,-400.0,0.00031718,2]
[385294261,1757753451651,-433.73,0.00031718,2]
[385294262,1757753451660,-400.0,0.00031718,2]
[385294263,1757753451670,-590.08,0.00031718,2]
[385294264,1757753451679,-400.0,0.00031718,2]
[385294265,1757753451689,-400.0,0.00031718,2]
[385294266,1757753451698,-400.0,0.00031718,2]
[385294267,1757753451714,-404.24,0.00031718,2]
[385294268,1757753451723,-400.0,0.00031718,2]
[385294269,1757753451732,-402.23308963,0.00031718,2]
[385294270,1757753451742,-400.0,0.00031718,2]
[385294271,1757753451751,-670.38,0.00031718,2]
[385294272,1757753451761,-400.0,0.00031718,2]
[385294273,1757753451770,-659.66,0.00031718,2]
[385294274,1757753451779,-404.4970532,0.00031718,2]
[385294275,1757753451789,-400.0,0.00031718,2]
[385294276,1757753451799,-400.0,0.00031718,2]
[385294277,1757753451809,-400.0,0.00031718,2]
[385294278,1757753451818,-400.0,0.00031718,2]
[385294279,1757753451827,-1066.15,0.00031718,2]
[385294280,1757753451837,-400.0,0.00031718,2]
[385294281,1757753451846,-400.0,0.00031718,2]
[385294282,1757753451856,-402.88014854,0.00031718,2]
[385294283,1757753451866,-634.62,0.00031718,2]
[385294284,1757753451875,-400.0,0.00031718,2]
[385294285,1757753451885,-562.92,0.00031718,2]
[385294286,1757753451894,-400.0,0.00031718,2]
[385294287,1757753451904,-402.17048628,0.00031718,2]
[385294288,1757753451913,-400.0,0.00031718,2]
[385294289,1757753451923,-400.0,0.00031718,2]
[385294290,1757753451933,-494.27,0.00031718,2]
[385294291,1757753451942,-597.73,0.00031718,2]
[385294292,1757753451951,-400.0,0.00031718,2]
[385294293,1757753451961,-597.06,0.00031718,2]
[385294294,1757753451970,-657.96,0.00031718,2]
[385294295,1757753451980,-400.0,0.00031718,2]
[385294296,1757753451990,-479.69,0.00031718,2]
[385294297,1757753451999,-400.0,0.00031718,2]
[385294298,1757753452008,-400.0,0.00031718,2]
[385294299,1757753452017,-696.99,0.00031718,2]
[385294300,1757753452026,-424.42,0.00031718,2]
[385294301,1757753452035,-572.38,0.00031718,2]
[385294302,1757753452044,-400.0,0.00031718,2]
[385294303,1757753452053,-400.0,0.00031718,2]
[385294304,1757753452063,-400.0,0.00031718,2]
[385294305,1757753452072,-400.0,0.00031718,2]
[385294306,1757753452082,-664.9,0.00031718,2]
[385294307,1757753452091,-400.0,0.00031718,2]
[385294308,1757753452101,-400.0,0.00031718,2]
[385294309,1757753452110,-653.22,0.00031718,2]
[385294310,1757753452120,-400.0,0.00031718,2]
[385294311,1757753452129,-400.0,0.00031718,2]
[385294312,1757753452139,-400.0,0.00031718,2]
[385294313,1757753452148,-203.63011688,0.00031718,2]
[385294314,1757753452158,-728.05,0.00031718,2]
[385294315,1757753452167,-748.76,0.00031718,2]
[385294316,1757753452177,-400.0,0.00031718,2]
[385294317,1757753452186,-400.0,0.00031718,2]
[385294318,1757753452196,-400.0,0.00031718,2]
[385294319,1757753452205,-443.14,0.00031718,2]
[385294320,1757753452215,-400.0,0.00031718,2]
[385294321,1757753452224,-628.42,0.00031718,2]
[385294322,1757753452233,-400.0,0.00031718,2]
[385294323,1757753452242,-400.0,0.00031718,2]
[385294324,1757753452251,-543.98,0.00031718,2]
[385294325,1757753452260,-602.24,0.00031718,2]
[385294326,1757753452270,-405.86868239,0.00031718,2]
[385294327,1757753452282,-400.0,0.00031718,2]
[385294328,1757753452291,-400.0,0.00031718,2]
[385294329,1757753452301,-667.32,0.00031718,2]
[385294330,1757753452310,-401.7126263,0.00031718,2]
[385294331,1757753452320,-400.0,0.00031718,2]
[385294332,1757753452330,-400.0,0.00031718,2]
[385294333,1757753452340,-400.0,0.00031718,2]
[385294334,1757753452349,-400.0,0.00031718,2]
[385294335,1757753452358,-400.0,0.00031718,2]
[385294336,1757753452367,-400.0,0.00031718,2]
[385294337,1757753452376,-466.06,0.00031718,2]
[385294338,1757753452386,-571.1,0.00031718,2]
[385294339,1757753452395,-649.05,0.00031718,2]
[385294340,1757753452405,-400.0,0.00031718,2]
[385294341,1757753452414,-563.06,0.00031718,2]
[385294342,1757753452423,-704.7,0.00031718,2]
[385294343,1757753452433,-400.0,0.00031718,2]
[385294344,1757753452442,-400.0,0.00031718,2]
[385294345,1757753452451,-400.0,0.00031718,2]
[385294346,1757753452461,-632.51891139,0.00031718,2]
[385294347,1757753452470,-1897.55673417,0.00031719,2]
[385294348,1757753452480,-632.51891139,0.0003172,2]
[385294349,1757753452489,-830.28785922,0.00031722,2]
[385294350,1757753452499,-500.0,0.00031725,2]
[385294351,1757753452508,-500.0,0.00031725,2]
[385294352,1757753452518,-400.0,0.00031726,2]
[385294353,1757753452527,-400.0,0.00031726,2]
[385294354,1757753452537,-400.0,0.00031726,2]
[385294355,1757753452546,-400.0,0.00031726,2]
[385294356,1757753452556,-400.0,0.00031726,2]
[385294357,1757753452565,-400.0,0.00031726,2]
[385294358,1757753452575,-400.0,0.00031726,2]
[385294359,1757753452584,-400.0,0.00031726,2]
[385294360,1757753452593,-400.0,0.00031726,2]
[385294361,1757753452603,-400.0,0.00031726,2]
[385294362,1757753452612,-400.0,0.00031726,2]
[385294363,1757753452621,-400.0,0.00031726,2]
[385294364,1757753452631,-497.25,0.00031726,2]
[385294365,1757753452640,-400.0,0.00031726,2]
[385294366,1757753452650,-400.0,0.00031726,2]
[385294367,1757753452659,-400.0,0.00031726,2]
[385294368,1757753452669,-400.0,0.00031726,2]
[385294369,1757753452678,-400.0,0.00031726,2]
[385294370,1757753452687,-400.0,0.00031726,2]
[385294371,1757753452697,-400.0,0.00031726,2]
[385294372,1757753452705,-400.0,0.00031726,2]
[385294373,1757753452715,-400.0,0.00031726,2]
[385294374,1757753452724,-504.1644386,0.00031726,2]
[385294375,1757753452734,-404.03835627,0.00031726,2]
[385294376,1757753452743,-733.88,0.00031726,2]
[385294377,1757753452752,-400.0,0.00031726,2]
[385294378,1757753452761,-400.0,0.00031726,2]
[385294379,1757753452771,-400.0,0.00031726,2]
[385294380,1757753452780,-474.24,0.00031726,2]
[385294381,1757753452790,-400.0,0.00031726,2]
[385294382,1757753452800,-619.86,0.00031726,2]
[385294383,1757753452809,-400.0,0.00031726,2]
[385294384,1757753452818,-400.0,0.00031726,2]
[385294385,1757753452828,-403.68022505,0.00031726,2]
[385294386,1757753452836,-400.0,0.00031726,2]
[385294387,1757753452846,-400.0,0.00031726,2]
[385294388,1757753452855,-400.0,0.00031726,2]
[385294389,1757753452864,-614.57,0.00031726,2]
[385294390,1757753452874,-400.0,0.00031726,2]
[385294391,1757753452883,-400.0,0.00031726,2]
[385294392,1757753452893,-400.0,0.00031726,2]
[385294393,1757753452902,-400.0,0.00031726,2]
[385294394,1757753452912,-480.34,0.00031726,2]
[385294395,1757753452921,-400.0,0.00031726,2]
[385294396,1757753452931,-400.0,0.00031726,2]
[385294397,1757753452941,-400.0,0.00031726,2]
[385294398,1757753452950,-400.0,0.00031726,2]
[385294399,1757753452960,-400.0,0.00031726,2]
[385294400,1757753452970,-400.0,0.00031726,2]
[385294401,1757753452979,-400.0,0.00031726,2]
[385294402,1757753452989,-402.72861325,0.00031726,2]
[385294403,1757753452999,-400.0,0.00031726,2]
[385294404,1757753453008,-500.0,0.00031726,2]
[385294405,1757753453017,-400.0,0.00031726,2]
[385294406,1757753453027,-723.88,0.00031726,2]
[385294407,1757753453036,-406.09076353,0.00031726,2]
[385294408,1757753453045,-402.93255009,0.00031726,2]
[385294409,1757753453055,-400.0,0.00031726,2]
[385294410,1757753453065,-400.0,0.00031726,2]
[385294411,1757753453075,-558.78,0.00031726,2]
[385294412,1757753453084,-400.0,0.00031726,2]
[385294413,1757753453094,-417.36,0.00031726,2]
[385294414,1757753453104,-400.0,0.00031726,2]
[385294415,1757753453114,-400.0,0.00031726,2]
[385294416,1757753453123,-400.0,0.00031726,2]
[385294417,1757753453133,-373.16813242,0.00031726,2]
[385294418,1757753453143,-400.0,0.00031726,2]
[385294419,1757753453153,-400.0,0.00031726,2]
[385294420,1757753453163,-400.0,0.00031726,2]
[385294421,1757753453172,-400.0,0.00031726,2]
[385294422,1757753453182,-400.0,0.00031726,2]
[385294423,1757753453192,-400.0,0.00031726,2]
[385294424,1757753453202,-400.0,0.00031726,2]
[385294425,1757753453211,-400.0,0.00031726,2]
[385294426,1757753453220,-400.0,0.00031726,2]
[385294427,1757753453231,-400.0,0.00031726,2]
[385294428,1757753453240,-400.0,0.00031726,2]
[385294429,1757753453249,-400.0,0.00031726,2]
[385294430,1757753453259,-400.0,0.00031726,2]
[385294431,1757753453268,-400.0,0.00031726,2]
[385294432,1757753453277,-400.0,0.00031726,2]
[385294433,1757753453287,-400.0,0.00031726,2]
[385294434,1757753453298,-402.77932679,0.00031726,2]
[385294435,1757753453307,-400.0,0.00031726,2]
[385294436,1757753453317,-400.0,0.00031726,2]
[385294437,1757753453327,-400.0,0.00031726,2]
[385294438,1757753453337,-400.0,0.00031726,2]
[385294439,1757753453346,-400.0,0.00031726,2]
[385294440,1757753453356,-446.61,0.00031726,2]
[385294441,1757753453365,-402.72862276,0.00031726,2]
[385294442,1757753453375,-400.0,0.00031726,2]
[385294443,1757753453385,-456.16,0.00031726,2]
[385294444,1757753453395,-400.0,0.00031726,2]
[385294445,1757753453405,-402.77765185,0.00031726,2]
[385294446,1757753453414,-400.0,0.00031726,2]
[385294447,1757753453424,-400.0,0.00031726,2]
[385294448,1757753453433,-404.4246043,0.00031726,2]
[385294449,1757753453443,-400.0,0.00031726,2]
[385294450,1757753453453,-400.0,0.00031726,2]
[385294451,1757753453462,-400.0,0.00031726,2]
[385294452,1757753453472,-191.79528567,0.00031726,2]
[385294453,1757753453481,-400.0,0.00031726,2]
[385294454,1757753453491,-400.0,0.00031726,2]
[385294455,1757753453501,-400.0,0.00031726,2]
[385294456,1757753453510,-400.0,0.00031726,2]
[385294457,1757753453519,-400.0,0.00031726,2]
[385294458,1757753453529,-400.0,0.00031726,2]
[385294459,1757753453539,-400.0,0.00031726,2]
[385294460,1757753453549,-400.0,0.00031726,2]
[385294461,1757753453558,-400.0,0.00031726,2]
[385294462,1757753453568,-400.0,0.00031726,2]
[385294463,1757753453578,-400.0,0.00031726,2]
[385294464,1757753453587,-400.0,0.00031726,2]
[385294465,1757753453597,-400.0,0.00031726,2]
[385294466,1757753453606,-400.0,0.00031726,2]
[385294467,1757753453616,-400.0,0.00031726,2]
[385294468,1757753453626,-400.0,0.00031726,2]
[385294469,1757753453636,-400.0,0.00031726,2]
[385294470,1757753453645,-767.7,0.00031726,2]
[385294471,1757753453655,-178.13497214,0.00031726,2]
[385294472,1757753453665,-552.44,0.00031726,2]
[385294473,1757753453675,-403.2526122,0.00031726,2]
[385294474,1757753453684,-400.0,0.00031726,2]
[385294475,1757753453694,-400.0,0.00031726,2]
[385294476,1757753453704,-582.74,0.00031726,2]
[385294477,1757753453713,-400.0,0.00031726,2]
[385294478,1757753453723,-400.0,0.00031726,2]
[385294479,1757753453732,-400.0,0.00031726,2]
[385294480,1757753453742,-400.0,0.00031726,2]
[385294481,1757753453751,-400.0,0.00031726,2]
[385294482,1757753453760,-400.0,0.00031726,2]
[385294483,1757753453770,-405.60555891,0.00031726,2]
[385294484,1757753453780,-406.6031806,0.00031726,2]
[385294485,1757753453789,-400.0,0.00031726,2]
[385294486,1757753453800,-400.0,0.00031726,2]
[385294487,1757753453809,-582.18,0.00031726,2]
[385294488,1757753453820,-400.0,0.00031726,2]
[385294489,1757753453830,-400.0,0.00031726,2]
[385294490,1757753453839,-400.0,0.00031726,2]
[385294491,1757753453849,-400.0,0.00031726,2]
[385294492,1757753453858,-400.0,0.00031726,2]
[385294493,1757753453867,-400.0,0.00031726,2]
[385294494,1757753453877,-400.0,0.00031726,2]
[385294495,1757753453887,-400.0,0.00031726,2]
[385294496,1757753453897,-400.0,0.00031726,2]
[385294497,1757753453906,-400.0,0.00031726,2]
[385294498,1757753453916,-400.0,0.00031726,2]
[385294499,1757753453925,-400.0,0.00031726,2]
[385294500,1757753453934,-424.48,0.00031726,2]
[385294501,1757753453944,-400.0,0.00031726,2]
[385294502,1757753453953,-400.0,0.00031726,2]
[385294503,1757753453963,-400.0,0.00031726,2]
[385294504,1757753453973,-400.0,0.00031726,2]
[385294505,1757753453983,-402.35690136,0.00031726,2]
[385294506,1757753453992,-445.62,0.00031726,2]
[385294507,1757753454002,-400.0,0.00031726,2]
[385294508,1757753454012,-400.0,0.00031726,2]
[385294509,1757753454021,-499.85,0.00031726,2]
[385294510,1757753454031,-400.0,0.00031726,2]
[385294511,1757753454040,-400.0,0.00031726,2]
[385294512,1757753454050,-400.0,0.00031726,2]
[385294513,1757753454059,-400.0,0.00031726,2]
[385294514,1757753454069,-400.0,0.00031726,2]
[385294515,1757753454079,-400.0,0.00031726,2]
[385294516,1757753454089,-657.89,0.00031726,2]
[385294517,1757753454098,-705.41,0.00031726,2]
[385294518,1757753454108,-404.48037403,0.00031726,2]
[385294519,1757753454118,-611.11,0.00031726,2]
[385294520,1757753454127,-1504.45,0.00031726,2]
[385294521,1757753454137,-500.0,0.00031726,2]
[385294522,1757753454146,-400.0,0.00031726,2]
[385294523,1757753454155,-400.0,0.00031726,2]
[385294524,1757753454165,-1000.0,0.00031726,2]
[385294525,1757753454174,-400.0,0.00031726,2]
[385294526,1757753454185,-833.26,0.00031726,2]
[385294527,1757753454194,-400.0,0.00031726,2]
[385294528,1757753454204,-400.0,0.00031726,2]